fUST/lending_fUST_20250501
["ID","MTS","AMOUNT","RATE_DAILY","PERIOD"]
[359491140,1746060634494,-400.0,0.00040273,12]
[359491141,1746060634505,-400.0,0.00040273,12]
[359491142,1746060634516,-400.0,0.00040273,12]
[359491143,1746060634529,-400.0,0.00040273,12]
[359491144,1746060634541,-1640.58067336,0.0004028,90]
[359491145,1746060634555,-2688.99,0.0004038,110]
[359491146,1746060634567,-2000.0,0.000404,27]
[359491147,1746060634579,-637.24,0.00040423,120]
[359491148,1746060634592,-400.0,0.00040563,12]
[359491149,1746060634604,-400.0,0.00040563,12]
[359491150,1746060634614,-400.0,0.00040563,12]
[359491151,1746060634624,-400.0,0.00040563,12]
[359491152,1746060634634,-400.0,0.00040596,12]
[359491153,1746060634644,-400.0,0.00040596,12]
[359491154,1746060634655,-235.44,0.00040596,12]
[359491155,1746060634665,-476.0,0.00040596,12]
[359491156,1746060634675,-400.0,0.00040596,12]
[359491157,1746060634687,-9121.82641692,0.00040597,2]
[359491158,1746060634698,-624.44218552,0.00040597,28]
[359491159,1746060634708,-151.0,0.000406,14]
[359491160,1746060634719,-637.24,0.00040623,120]
[359491161,1746060634729,-371.7331583,0.0004065,6]
[359491162,1746060634740,-1216.77559349,0.00040653,3]
[359491163,1746060634751,-400.0,0.00040658,12]
[359491164,1746060634761,-400.0,0.00040658,12]
[359491165,1746060634771,-313.33,0.00040658,12]
[359491166,1746060634780,-400.0,0.00040658,12]
[359491167,1746060634789,-400.0,0.00040658,12]
[359491168,1746060634799,-400.0,0.00040658,12]
[359491169,1746060634809,-400.0,0.00040658,12]
[359491170,1746060634819,-400.0,0.00040658,12]
[359491171,1746060634828,-400.0,0.00040658,12]
[359491172,1746060634837,-400.0,0.00040658,12]
[359491173,1746060634847,-400.0,0.00040658,12]
[359491174,1746060634858,-400.0,0.00040658,12]
[359491175,1746060634868,-400.0,0.00040658,12]
[359491176,1746060634878,-400.0,0.00040658,12]
[359491177,1746060634888,-400.0,0.00040658,12]
[359491178,1746060634897,-400.0,0.00040658,12]
[359491179,1746060634907,-400.0,0.00040658,12]
[359491180,1746060634917,-179.65,0.00040658,12]
[359491181,1746060634926,-400.0,0.00040658,12]
[359491182,1746060634936,-400.0,0.00040658,12]
[359491183,1746060634945,-400.0,0.00040658,12]
[359491184,1746060634955,-400.0,0.00040658,12]
[359491185,1746060634964,-400.0,0.00040658,12]
[359491186,1746060634974,-151.0,0.00040659,14]
[359491187,1746060634984,-151.0,0.00040659,14]
[359491188,1746060634994,-151.0,0.00040659,14]
[359491189,1746060635003,-151.0,0.00040659,14]
[359491190,1746060635013,-151.0,0.00040659,14]
[359491191,1746060635022,-151.0,0.00040659,14]
[359491192,1746060635032,-276.510893,0.00040659,14]
[359491193,1746060635042,-217.72044,0.00040659,14]
[359491194,1746060635052,-400.0,0.00040662,12]
[359491195,1746060635062,-400.0,0.00040662,12]
[359491196,1746060635072,-400.0,0.00040662,12]
[359491197,1746060635082,-400.0,0.00040662,12]
[359491198,1746060635092,-400.0,0.00040662,12]
[359491199,1746060635102,-400.0,0.00040662,12]
[359491200,1746060635112,-400.0,0.00040662,12]
[359491201,1746060635122,-400.0,0.00040663,12]
[359491202,1746060635131,-400.0,0.00040663,12]
[359491203,1746060635141,-254.16,0.00040663,12]
[359491204,1746060635151,-400.0,0.00040663,12]
[359491205,1746060635160,-400.0,0.00040663,12]
[359491206,1746060635171,-400.0,0.00040663,12]
[359491207,1746060635180,-400.0,0.00040663,12]
[359491208,1746060635190,-400.0,0.00040663,12]
[359491209,1746060635199,-400.0,0.00040663,12]
[359491210,1746060635209,-400.0,0.00040663,12]
[359491211,1746060635219,-400.0,0.00040663,12]
[359491212,1746060635229,-400.0,0.00040663,12]
[359491213,1746060635239,-400.0,0.00040663,12]
[359491214,1746060635249,-400.0,0.00040663,12]
[359491215,1746060635259,-438.34,0.00040663,12]
[359491216,1746060635269,-400.0,0.00040663,12]
[359491217,1746060635279,-400.0,0.00040663,12]
[359491218,1746060635289,-400.0,0.00040663,12]
[359491219,1746060635433,-400.0,0.00040663,12]
[359491220,1746060635443,-400.0,0.00040663,12]
[359491221,1746060635452,-400.0,0.00040663,12]
[359491222,1746060635463,-400.0,0.00040663,12]
[359491223,1746060635472,-400.0,0.00040663,12]
[359491224,1746060635485,-400.0,0.00040663,12]
[359491225,1746060635494,-273.68,0.00040663,12]
[359491226,1746060635504,-400.0,0.00040663,12]
[359491227,1746060635514,-400.0,0.00040663,12]
[359491228,1746060635524,-400.0,0.00040663,12]
[359491229,1746060635535,-151.0,0.00040664,14]
[359491230,1746060635544,-151.0,0.00040664,14]
[359491231,1746060635554,-151.0,0.00040664,14]
[359491232,1746060635564,-151.0,0.00040664,14]
[359491233,1746060635574,-151.0,0.00040664,14]
[359491234,1746060635583,-151.0,0.00040664,14]
[359491235,1746060635593,-151.0,0.00040664,14]
[359491236,1746060635603,-151.0,0.00040664,14]
[359491237,1746060635612,-151.0,0.00040664,14]
[359491238,1746060635622,-151.0,0.00040664,14]
[359491239,1746060635631,-151.0,0.00040664,14]
[359491240,1746060635641,-151.0,0.00040664,14]
[359491241,1746060635650,-151.0,0.00040664,14]
[359491242,1746060635660,-151.0,0.00040664,14]
[359491243,1746060635669,-151.0,0.00040664,14]
[359491244,1746060635679,-151.0,0.00040664,14]
[359491245,1746060635688,-151.0,0.00040664,14]
[359491246,1746060635697,-151.0,0.00040664,14]
[359491247,1746060635708,-151.0,0.00040664,14]
[359491248,1746060635718,-177.256696,0.00040664,14]
[359491249,1746060635729,-151.0,0.00040664,14]
[359491250,1746060635738,-151.0,0.00040664,14]
[359491251,1746060635748,-151.0,0.00040664,14]
[359491252,1746060635757,-151.0,0.00040664,14]
[359491253,1746060635767,-151.0,0.00040664,14]
[359491254,1746060635776,-151.0,0.00040664,14]
[359491255,1746060635785,-193.135109,0.00040664,14]
[359491256,1746060635795,-151.0,0.00040664,14]
[359491257,1746060635804,-151.0,0.00040664,14]
[359491258,1746060635813,-151.0,0.00040664,14]
[359491259,1746060635823,-151.0,0.00040664,14]
[359491260,1746060635832,-156.655618,0.00040664,14]
[359491261,1746060635841,-151.0,0.00040664,14]
[359491262,1746060635851,-151.0,0.00040664,14]
[359491263,1746060635861,-151.0,0.00040664,14]
[359491264,1746060635871,-151.0,0.00040664,14]
[359491265,1746060635880,-151.0,0.00040664,14]
[359491266,1746060635890,-169.209136,0.00040664,14]
[359491267,1746060635900,-151.0,0.00040664,14]
[359491268,1746060635909,-151.0,0.00040664,14]
[359491269,1746060635919,-151.0,0.00040664,14]
[359491270,1746060635930,-151.0,0.00040664,14]
[359491271,1746060635940,-151.0,0.00040664,14]
[359491272,1746060635950,-161.16784,0.00040664,14]
[359491273,1746060635959,-151.0,0.00040664,14]
[359491274,1746060635969,-151.0,0.00040664,14]
[359491275,1746060635978,-151.0,0.00040664,14]
[359491276,1746060635988,-151.0,0.00040664,14]
[359491277,1746060635998,-287.023671,0.00040664,14]
[359491278,1746060636007,-151.0,0.00040664,14]
[359491279,1746060636016,-151.0,0.00040664,14]
[359491280,1746060636025,-151.0,0.00040664,14]
[359491281,1746060636034,-151.0,0.00040664,14]
[359491282,1746060636043,-151.0,0.00040664,14]
[359491283,1746060636053,-151.0,0.00040664,14]
[359491284,1746060636062,-151.0,0.00040664,14]
[359491285,1746060636071,-151.0,0.00040664,14]
[359491286,1746060636080,-151.0,0.00040664,14]
[359491287,1746060636090,-151.0,0.00040664,14]
[359491288,1746060636100,-151.0,0.00040664,14]
[359491289,1746060636109,-151.0,0.00040664,14]
[359491290,1746060636119,-151.0,0.00040664,14]
[359491291,1746060636128,-151.0,0.00040664,14]
[359491292,1746060636137,-248.633166,0.00040664,14]
[359491293,1746060636147,-400.0,0.00040672,12]
[359491294,1746060636155,-355.46,0.00040672,12]
[359491295,1746060636164,-400.0,0.00040672,12]
[359491296,1746060636174,-500.0,0.00040673,2]
[359491297,1746060636183,-625.47714158,0.00040673,5]
[359491298,1746060636193,-500.0,0.00040673,5]
[359491299,1746060636203,-500.0,0.00040673,5]
[359491300,1746060636213,-448.33480722,0.00040673,5]
[359491301,1746060636222,-500.0,0.00040673,5]
[359491302,1746060636232,-500.0,0.00040673,5]
[359491303,1746060636243,-500.0,0.00040673,5]
[359491304,1746060636253,-500.0,0.00040673,5]
[359491305,1746060636263,-1216.77559349,0.00040686,3]
[359491306,1746060636272,-1216.77559349,0.0004069,3]
[359491307,1746060636282,-400.0,0.00040696,12]
[359491308,1746060636291,-400.0,0.00040696,12]
[359491309,1746060636301,-400.0,0.00040696,12]
[359491310,1746060636310,-499.58,0.00040696,12]
[359491311,1746060636320,-400.0,0.00040696,12]
[359491312,1746060636329,-362.52,0.00040696,12]
[359491313,1746060636340,-400.0,0.00040696,12]
[359491314,1746060636349,-400.0,0.00040696,12]
[359491315,1746060636359,-400.0,0.00040696,12]
[359491316,1746060636369,-400.0,0.00040696,12]
[359491317,1746060636379,-400.0,0.00040696,12]
[359491318,1746060636388,-312.8,0.00040696,12]
[359491319,1746060636398,-400.0,0.00040696,12]
[359491320,1746060636407,-400.0,0.00040696,12]
[359491321,1746060636417,-400.0,0.00040696,12]
[359491322,1746060636426,-346.56,0.00040696,12]
[359491323,1746060636436,-400.0,0.00040696,12]
[359491324,1746060636445,-400.0,0.00040696,12]
[359491325,1746060636454,-400.0,0.00040696,12]
[359491326,1746060636464,-281.0,0.00040696,12]
[359491327,1746060636473,-435.1,0.00040696,12]
[359491328,1746060636485,-422.45180802,0.00040697,3]
[359491329,1746060636494,-11795.89076649,0.00040697,2]
[359491330,1746060636503,-274937.60627551,0.00040697,20]
[359491331,1746060636519,-6333.67103448,0.00040697,20]
[359491332,1746060636535,-400.0,0.00040273,12]
[359491333,1746060636545,-1953.592566,0.00040697,20]
[359491334,1746060636556,-303.09553512,0.00040697,20]
[359491348,1746060638605,-400.0,0.00040273,12]
[359491350,1746060638616,-400.0,0.00040273,12]
[359491352,1746060638626,-400.0,0.00040273,12]
[359491355,1746060638636,-400.0,0.00040273,12]
[359491357,1746060638647,-400.0,0.00040273,12]
[359491359,1746060638657,-400.0,0.00040273,12]
[359491361,1746060638666,-400.0,0.00040563,12]
[359491363,1746060638676,-400.0,0.00040596,12]
[359491365,1746060638685,-500.0,0.00040657,31]
[359491367,1746060638695,-300.38865746,0.00040657,31]
[359491369,1746060638705,-209.25473086,0.00040657,31]
[359491371,1746060638714,-500.0,0.00040657,31]
[359491373,1746060638724,-637.10475188,0.00040657,31]
[359491375,1746060638734,-500.0,0.00040657,31]
[359491377,1746060638743,-500.0,0.00040657,31]
[359491379,1746060638753,-500.0,0.00040657,31]
[359491381,1746060638762,-500.0,0.00040657,31]
[359491383,1746060638772,-224.06190565,0.00040657,31]
[359491386,1746060638782,-400.0,0.00040658,12]
[359491388,1746060638792,-400.0,0.00040658,12]
[359491390,1746060638801,-400.0,0.00040658,12]
[359491392,1746060638810,-400.0,0.00040662,12]
[359491394,1746060638821,-400.0,0.00040663,12]
[359491396,1746060638830,-400.0,0.00040663,12]
[359491398,1746060638841,-400.0,0.00040695,12]
[359491400,1746060638850,-429.82916412,0.00040696,7]
[359491402,1746060638860,-358.75233206,0.00040696,7]
[359491404,1746060638869,-500.0,0.00040696,31]
[359491406,1746060638878,-500.0,0.00040696,31]
[359491408,1746060638888,-500.0,0.00040696,31]
[359491410,1746060638898,-488.26103867,0.00040696,31]
[359491412,1746060638908,-500.0,0.00040696,31]
[359491414,1746060638918,-200.90686741,0.00040696,31]
[359491416,1746060638927,-500.0,0.00040696,31]
[359491418,1746060638937,-500.0,0.00040696,31]
[359491421,1746060638947,-500.0,0.00040696,31]
[359491423,1746060638957,-500.0,0.00040696,31]
[359491425,1746060638967,-500.0,0.00040696,31]
[359491427,1746060638976,-153.24442105,0.00040696,31]
[359491428,1746060638985,-500.0,0.00040696,31]
[359491430,1746060638994,-500.0,0.00040696,31]
[359491433,1746060639004,-500.0,0.00040696,31]
[359491435,1746060639014,-500.0,0.00040696,31]
[359491437,1746060639024,-500.0,0.00040696,31]
[359491439,1746060639034,-500.0,0.00040696,31]
[359491441,1746060639044,-356.1444465,0.00040696,31]
[359491443,1746060639056,-500.0,0.00040696,31]
[359491445,1746060639066,-500.0,0.00040696,31]
[359491447,1746060639075,-500.0,0.00040696,31]
[359491449,1746060639085,-400.0,0.00040696,12]
[359491451,1746060639094,-315.56,0.00040696,12]
[359491453,1746060639104,-400.0,0.00040696,12]
[359491455,1746060639113,-400.0,0.00040696,12]
[359491457,1746060639123,-400.0,0.00040696,12]
[359491459,1746060639133,-400.0,0.00040696,12]
[359491461,1746060639142,-400.0,0.00040696,12]
[359491463,1746060639152,-516.9,0.00040696,12]
[359491465,1746060639161,-14681.84510399,0.00040697,20]
[359491467,1746060639173,-4029.92967713,0.00040697,20]
[359491470,1746060639184,-8681.54347723,0.00040697,20]
[359491472,1746060639195,-121265.86299811,0.00040697,20]
[359491480,1746060641002,-1591.74456168,0.00040697,20]
[359491481,1746060641055,-412.03639997,0.00040697,20]
[359491490,1746060643719,-1415.44378995,0.00040697,20]
[359491493,1746060643826,-3105.7829552,0.00040697,20]
[359491497,1746060643879,-8463.95,0.00040697,20]
[359491536,1746061076756,216.88123377,0.00025,30]
[359491537,1746061272614,-209.955103,0.00027397,2]
[359491538,1746061272649,-209.955103,0.00033165,2]
[359491539,1746061635089,-825.99297266,0.00036381,2]
[359491540,1746061638148,-545.81423673,0.00036381,2]
[359491541,1746061638169,-171.23556,0.00036481,2]
[359491542,1746061638190,-400.0,0.00037438,3]
[359491543,1746061638212,-400.0,0.00037438,2]
[359491544,1746061638234,-573.60909569,0.00037439,2]
[359491545,1746061648094,-622.75687394,0.00037439,2]
[359491546,1746061754147,-188.959592,0.00027397,2]
[359491547,1746061761137,-188.959592,0.00033165,2]
[359491553,1746061831763,-387.74274757,0.00035339,2]
[359491554,1746061831773,-250.0,0.00036915,2]
[359491555,1746061831782,-200.0,0.00037438,3]
[359491556,1746061831792,-2405.75725244,0.00037439,2]
[359491557,1746061831804,-10549.27508,0.00037439,2]
[359491558,1746061831815,-8891.20571553,0.00037439,2]
[359491559,1746061831825,-210.6186479,0.00037439,2]
[359491560,1746061831834,-421.37435881,0.00038816,2]
[359491562,1746061831844,-2153.36619183,0.0003883,2]
[359491589,1746061837774,-91.63380817,0.0003883,2]
[359491590,1746061837784,-707.0,0.0003883,2]
[359491591,1746061837794,-188.959592,0.00038933,2]
[359491593,1746061837804,-840.90604152,0.00039493,2]
[359491594,1746061837813,-150.0,0.00039541,2]
[359491595,1746061837822,-218.146,0.00039541,2]
[359491596,1746061837831,-545.0,0.00039541,2]
[359491597,1746061837841,-600.0,0.00039664,60]
[359491599,1746061837850,-700.96106472,0.0004,30]
[359491600,1746061837859,-947.64359401,0.0004,120]
[359491601,1746061837868,-458.11,0.000402,2]
[359491602,1746061837877,-600.0,0.00040212,60]
[359491603,1746061837887,-300.0,0.00040271,31]
[359491604,1746061837896,-521.02634053,0.00040271,31]
[359491605,1746061837905,-500.0,0.00040271,31]
[359491606,1746061837915,-649.37661279,0.00040271,31]
[359491607,1746061837924,-500.0,0.00040271,31]
[359491608,1746061837933,-170.66219384,0.00040271,31]
[359491609,1746061837943,-500.0,0.00040271,31]
[359491611,1746061837952,-500.0,0.00040271,31]
[359491612,1746061837962,-500.0,0.00040271,31]
[359491613,1746061837971,-500.0,0.00040271,31]
[359491614,1746061837980,-500.0,0.00040271,31]
[359491615,1746061837990,-500.0,0.00040271,31]
[359491616,1746061837999,-500.0,0.00040271,31]
[359491617,1746061838008,-500.0,0.00040271,31]
[359491618,1746061838018,-500.0,0.00040271,31]
[359491619,1746061838027,-565.82944158,0.00040271,31]
[359491620,1746061838037,-500.0,0.00040271,31]
[359491621,1746061838048,-500.0,0.00040271,31]
[359491622,1746061838057,-500.0,0.00040271,31]
[359491623,1746061838066,-500.0,0.00040271,31]
[359491624,1746061838076,-500.0,0.00040271,31]
[359491625,1746061838091,-308.60309,0.00040271,31]
[359491626,1746061838101,-500.0,0.00040271,31]
[359491627,1746061838110,-500.0,0.00040271,31]
[359491628,1746061838119,-500.0,0.00040271,31]
[359491629,1746061838129,-500.0,0.00040271,31]
[359491630,1746061838137,-500.0,0.00040271,31]
[359491631,1746061838147,-500.0,0.00040271,31]
[359491632,1746061838155,-500.0,0.00040271,31]
[359491633,1746061838165,-500.0,0.00040271,31]
[359491634,1746061838174,-366.43348244,0.00040271,31]
[359491635,1746061838183,-500.0,0.00040271,31]
[359491636,1746061838193,-500.0,0.00040271,31]
[359491637,1746061838202,-500.0,0.00040271,31]
[359491638,1746061838211,-500.0,0.00040271,31]
[359491639,1746061838220,-500.0,0.00040271,31]
[359491640,1746061838229,-500.0,0.00040271,31]
[359491641,1746061838239,-500.0,0.00040271,31]
[359491642,1746061838248,-500.0,0.00040271,31]
[359491643,1746061838258,-500.0,0.00040271,31]
[359491644,1746061838271,-500.0,0.00040271,31]
[359491645,1746061838281,-500.0,0.00040271,31]
[359491646,1746061838291,-500.0,0.00040271,31]
[359491647,1746061838303,-257325.84657575,0.00040272,4]
[359491648,1746061838315,-2051.59059291,0.00040272,4]
[359491649,1746061838326,-295708.15147134,0.00040272,4]
[359491650,1746061838336,-400.0,0.00040273,12]
[359491651,1746061838346,-400.0,0.00040273,12]
[359491652,1746061838355,-400.0,0.00040273,12]
[359491653,1746061838364,-400.0,0.00040273,12]
[359491654,1746061838374,-400.0,0.00040273,12]
[359491655,1746061838383,-400.0,0.00040273,12]
[359491656,1746061838392,-400.0,0.00040273,12]
[359491657,1746061838401,-400.0,0.00040273,12]
[359491658,1746061838411,-400.0,0.00040273,12]
[359491659,1746061838420,-400.0,0.00040273,12]
[359491660,1746061838430,-400.0,0.00040273,12]
[359491661,1746061838440,-400.0,0.00040273,12]
[359491662,1746061838449,-400.0,0.00040273,12]
[359491663,1746061838458,-400.0,0.00040273,12]
[359491664,1746061838468,-400.0,0.00040273,12]
[359491665,1746061838477,-400.0,0.00040273,12]
[359491666,1746061838487,-400.0,0.00040273,12]
[359491667,1746061838496,-400.0,0.00040273,12]
[359491668,1746061838505,-400.0,0.00040273,12]
[359491669,1746061838515,-400.0,0.00040273,12]
[359491670,1746061838524,-400.0,0.00040273,12]
[359491671,1746061838534,-400.0,0.00040273,12]
[359491672,1746061838544,-400.0,0.00040273,12]
[359491673,1746061838555,-400.0,0.00040273,12]
[359491674,1746061838564,-400.0,0.00040273,12]
[359491675,1746061838574,-400.0,0.00040273,12]
[359491676,1746061838583,-400.0,0.00040273,12]
[359491677,1746061838593,-400.0,0.00040273,12]
[359491678,1746061838602,-400.0,0.00040273,12]
[359491679,1746061838612,-500.0,0.00040273,12]
[359491680,1746061838622,-165.43,0.00040273,12]
[359491681,1746061838631,-400.0,0.00040273,12]
[359491682,1746061838746,-400.0,0.00040273,12]
[359491683,1746061838757,-400.0,0.00040273,12]
[359491684,1746061838766,-400.0,0.00040273,12]
[359491685,1746061838776,-400.0,0.00040273,12]
[359491686,1746061838786,-290.72,0.00040273,12]
[359491687,1746061838797,-400.0,0.00040273,12]
[359491688,1746061838806,-400.0,0.00040273,12]
[359491689,1746061838816,-400.0,0.00040273,12]
[359491690,1746061838825,-400.0,0.00040273,12]
[359491691,1746061838835,-495.56,0.00040273,12]
[359491692,1746061838844,-400.0,0.00040273,12]
[359491693,1746061838854,-400.0,0.00040273,12]
[359491694,1746061838863,-400.0,0.00040273,12]
[359491695,1746061838874,-400.0,0.00040273,12]
[359491696,1746061838884,-400.0,0.00040273,12]
[359491697,1746061838894,-400.0,0.00040273,12]
[359491698,1746061838904,-400.0,0.00040273,12]
[359491699,1746061838915,-400.0,0.00040273,12]
[359491700,1746061838924,-400.0,0.00040273,12]
[359491701,1746061838935,-400.0,0.00040273,12]
[359491702,1746061838944,-400.0,0.00040273,12]
[359491703,1746061838955,-400.0,0.00040273,12]
[359491704,1746061838965,-400.0,0.00040273,12]
[359491705,1746061838975,-446.27529347,0.00040273,12]
[359491706,1746061838984,-400.0,0.00040273,12]
[359491707,1746061838994,-400.0,0.00040273,12]
[359491708,1746061839003,-400.0,0.00040273,12]
[359491709,1746061839013,-400.0,0.00040273,12]
[359491710,1746061839023,-400.0,0.00040273,12]
[359491711,1746061839032,-400.0,0.00040273,12]
[359491712,1746061839043,-400.0,0.00040273,12]
[359491713,1746061839053,-400.0,0.00040273,12]
[359491714,1746061839063,-400.0,0.00040273,12]
[359491715,1746061839072,-400.0,0.00040273,12]
[359491716,1746061839082,-400.0,0.00040273,12]
[359491717,1746061839092,-400.0,0.00040273,12]
[359491718,1746061839101,-400.0,0.00040273,12]
[359491719,1746061839111,-400.0,0.00040273,12]
[359491720,1746061839120,-400.0,0.00040273,12]
[359491721,1746061839130,-464.92,0.00040273,12]
[359491722,1746061839140,-400.0,0.00040273,12]
[359491723,1746061839149,-400.0,0.00040273,12]
[359491724,1746061839159,-500.0,0.00040273,12]
[359491725,1746061839168,-413.16,0.00040273,12]
[359491726,1746061839177,-400.0,0.00040273,12]
[359491727,1746061839187,-400.0,0.00040273,12]
[359491728,1746061839196,-400.0,0.00040273,12]
[359491729,1746061839206,-400.0,0.00040273,12]
[359491730,1746061839216,-400.0,0.00040273,12]
[359491731,1746061839225,-400.0,0.00040273,12]
[359491732,1746061839235,-400.31455638,0.00040273,12]
[359491733,1746061839244,-400.0,0.00040273,12]
[359491734,1746061839254,-400.0,0.00040273,12]
[359491735,1746061839268,-537.57,0.00040273,12]
[359491736,1746061839277,-400.0,0.00040273,12]
[359491737,1746061839287,-400.0,0.00040273,12]
[359491738,1746061839297,-400.0,0.00040273,12]
[359491739,1746061839310,-400.0,0.00040273,12]
[359491740,1746061839319,-374.56126781,0.00040273,12]
[359491743,1746061839332,-25.43873219,0.00040273,12]
[359491745,1746061839343,-400.0,0.00040273,12]
[359491747,1746061839353,-400.0,0.00040273,12]
[359491749,1746061839363,-364.29,0.00040273,12]
[359491751,1746061839373,-387.74274757,0.00040339,2]
[359491752,1746061839383,-912.58169512,0.0004039,3]
[359491753,1746061839392,-400.0,0.00040397,12]
[359491754,1746061839402,-400.0,0.00040399,12]
[359491755,1746061839412,-297.94682512,0.00040399,12]
[359491756,1746061839425,-102.05317488,0.00040399,12]
[359491757,1746061839435,-400.0,0.00040399,12]
[359491758,1746061839445,-400.0,0.00040399,12]
[359491759,1746061839455,-400.0,0.00040399,12]
[359491760,1746061839465,-400.0,0.00040399,12]
[359491761,1746061839475,-106.88682512,0.00040399,12]
[359491789,1746061840235,-293.11317488,0.00040399,12]
[359491790,1746061840245,-400.0,0.00040399,12]
[359491791,1746061840254,-239.65,0.00040399,12]
[359491792,1746061840267,-400.0,0.00040399,12]
[359491793,1746061840276,-400.0,0.00040399,12]
[359491794,1746061840285,-400.0,0.00040399,12]
[359491795,1746061840295,-400.0,0.00040399,12]
[359491796,1746061840305,-400.0,0.00040399,12]
[359491797,1746061840315,-400.0,0.00040399,12]
[359491798,1746061840324,-447.18,0.00040399,12]
[359491799,1746061840334,-540.99,0.00040399,12]
[359491800,1746061840348,-400.0,0.00040399,12]
[359491801,1746061840359,-400.0,0.00040399,12]
[359491802,1746061840368,-400.0,0.00040399,12]
[359491803,1746061840378,-400.0,0.00040399,12]
[359491804,1746061840388,-400.0,0.00040399,12]
[359491805,1746061840398,-400.0,0.00040399,12]
[359491806,1746061840410,-400.0,0.00040399,12]
[359491807,1746061840419,-400.0,0.00040399,12]
[359491808,1746061840428,-400.0,0.00040399,12]
[359491809,1746061840438,-400.0,0.00040399,12]
[359491810,1746061840447,-400.0,0.00040399,12]
[359491811,1746061840457,-400.0,0.00040399,12]
[359491812,1746061840466,-400.0,0.00040399,12]
[359491813,1746061840475,-400.0,0.00040399,12]
[359491814,1746061840484,-464.92,0.00040399,12]
[359491815,1746061840494,-400.0,0.00040399,12]
[359491816,1746061840503,-400.0,0.00040399,12]
[359491817,1746061840512,-464.04,0.00040399,12]
[359491818,1746061840522,-400.0,0.00040399,12]
[359491819,1746061840531,-400.0,0.00040399,12]
[359491820,1746061840540,-400.0,0.00040399,12]
[359491821,1746061840551,-400.0,0.00040399,12]
[359491822,1746061840560,-2006.0,0.000404,27]
[359491823,1746061840569,-456.58,0.00040596,12]
[359491824,1746061840579,-160.0,0.00040599,3]
[359491825,1746061840588,-261.5729753,0.00040599,5]
[359491826,1746061840597,-500.0,0.00040673,5]
[359491827,1746061840606,-500.0,0.00040673,5]
[359491828,1746061840615,-500.0,0.00040673,5]
[359491829,1746061840624,-912.58169512,0.00040687,3]
[359491830,1746061840633,-912.58169512,0.0004069,3]
[359491831,1746061840643,-400.0,0.00040692,12]
[359491832,1746061840655,-400.0,0.00040692,12]
[359491833,1746061840664,-400.0,0.00040692,12]
[359491834,1746061840674,-400.0,0.00040692,12]
[359491835,1746061840683,-400.0,0.00040692,12]
[359491836,1746061840692,-400.0,0.00040692,12]
[359491837,1746061840701,-400.0,0.00040692,12]
[359491838,1746061840710,-400.0,0.00040693,12]
[359491839,1746061840720,-353.29,0.00040693,12]
[359491840,1746061840730,-400.0,0.00040693,12]
[359491841,1746061840739,-425.38,0.00040693,12]
[359491842,1746061840749,-400.0,0.00040693,12]